[Event "67th RUS-ch Superfinal Women 2017"]
[Site "St. Petersburg"]
[Date "2017.12.10"]
[Round "7"]
[White "Kovalevskaya, Ekaterina"]
[Black "Ovod, Evgenija"]
[Result "1/2-1/2"]
[ECO "A13"]
[WhiteElo "2405"]
[BlackElo "2364"]
[Annotator "ChessBase"]
[PlyCount "61"]
[EventDate "2017.??.??"]
[EventType "tourn"]
[EventCountry "RUS"]
[SourceTitle "playchess.com"]
[Source "ChessBase"]
[SourceQuality "1"]
[TimeControl "40/5400+30:1800+30"]

1. c4 {[%emt 0:00:00]} e6 {[%emt 0:00:08]} 2. Nf3 {[%emt 0:00:00]} Nf6 {[%emt 0:00:06]} 3. Nc3 {[%emt 0:00:00]} d5 {[%emt 0:00:07]} 4. e3 {[%emt 0:00:05]} c5 {[%emt 0:00:48]} 5. d4 {[%emt 0:02:12]} dxc4 {[%emt 0:04:38]} 6. Bxc4 {[%emt 0:00:51]} a6 {[%emt 0:00:02]} 7. a4 {[%emt 0:06:38]} Nc6 {[%emt 0:00:14]} 8. O-O {[%emt 0:00:11]} Be7 {[%emt 0:00:34]} 9. Ne5 {[%emt 0:13:30]} cxd4 {[%emt 0:04:52]} 10. Nxc6 {[%emt 0:01:19]} bxc6 {[%emt 0:00:04]} 11. Qxd4 {[%emt 0:04:06]} Qxd4 {[%emt 0:02:13]} 12. exd4 {[%emt 0:00:02]} a5 {[%emt 0:00:04]} 13. b3 {[%emt 0:06:00]} Ba6 {[%emt 0:04:14]} 14. Bf4 {[%emt 0:13:59]} Nd5 {[%emt 0:17:16]} 15. Nxd5 {[%emt 0:10:07]} exd5 {[%emt 0:00:08]} 16. Bxa6 {[%emt 0:01:36]} Rxa6 {[%emt 0:00:03]} 17. Rfd1 {[%emt 0:00:44]} Kd7 {[%emt 0:00:56]} 18. Rd3 {[%emt 0:06:47]} h5 {[%emt 0:12:05]} 19. Kf1 {[%emt 0:00:52]} Bb4 {[%emt 0:15:41]} 20. Rg3 {[%emt 0:20:42]} g6 {[%emt 0:00:05]} 21. Rd1 {[%emt 0:00:31]} Re8 {[%emt 0:02:48]} 22. Re3 {[%emt 0:03:27]} Rxe3 {[%emt 0:02:23]} 23. Bxe3 {[%emt 0:00:11]} Bd6 {[%emt 0:02:08]} 24. h3 {[%emt 0:00:44]} f5 {[%emt 0:01:51]} 25. g3 {[%emt 0:01:40]} Ra8 {[%emt 0:02:52]} 26. Rd3 {[%emt 0:00:36]} Re8 {[%emt 0:10:42]} 27. Bd2 {[%emt 0:00:49]} Bc7 {[%emt 0:01:45]} 28. Re3 {[%emt 0:02:42]} Rb8 {[%emt 0:03:01]} 29. Rd3 {[%emt 0:01:19]} Re8 {[%emt 0:00:43]} 30. Re3 {[%emt 0:00:06]} Rb8 {[%emt 0:00:06]} 31. Rd3 {[%emt 0:00:05]} 1/2-1/2

[Event "67th RUS-ch Superfinal Women 2017"]
[Site "St. Petersburg"]
[Date "2017.12.11"]
[Round "8"]
[White "Shuvalova, Polina"]
[Black "Kovalevskaya, Ekaterina"]
[Result "1-0"]
[ECO "B30"]
[WhiteElo "2385"]
[BlackElo "2405"]
[Annotator "ChessBase"]
[PlyCount "163"]
[EventDate "2017.??.??"]
[EventType "tourn"]
[EventCountry "RUS"]
[SourceTitle "playchess.com"]
[Source "ChessBase"]
[SourceQuality "1"]
[TimeControl "40/5400+30:1800+30"]

1. e4 {[%emt 0:00:00]} c5 {[%emt 0:00:08]} 2. Nf3 {[%emt 0:00:00]} Nc6 {[%emt 0:00:18]} 3. c3 {[%emt 0:00:00]} d5 {[%emt 0:04:25]} 4. exd5 {[%emt 0:00:00]} Qxd5 {[%emt 0:00:07]} 5. d4 {[%emt 0:00:00]} cxd4 {[%emt 0:00:26]} 6. cxd4 {[%emt 0:00:00]} Bg4 {[%emt 0:01:21]} 7. Be2 {[%emt 0:01:31]} e6 {[%emt 0:00:07]} 8. Nc3 {[%emt 0:00:11]} Qd8 {[%emt 0:00:17]} 9. O-O {[%emt 0:00:51]} Nf6 {[%emt 0:00:04]} 10. h3 {[%emt 0:01:25]} Bh5 {[%emt 0:04:58]} 11. Be3 {[%emt 0:03:37]} Be7 {[%emt 0:01:31]} 12. Qb3 {[%emt 0:00:14]} O-O {[%emt 0:10:30]} 13. Qxb7 {[%emt 0:05:02]} Nb4 {[%emt 0:01:31]} 14. Bf4 {[%emt 0:06:55]} Nfd5 {[%emt 0:14:40]} 15. Nxd5 {[%emt 0:05:48]} Nxd5 {[%emt 0:00:36]} 16. Be5 {[%emt 0:01:17]} f6 {[%emt 0:04:42]} 17. Bh2 {[%emt 0:06:10]} Bd6 {[%emt 0:05:41]} 18. Qc6 {[%emt 0:04:42]} Bxh2+ {[%emt 0:01:15]} 19. Nxh2 {[%emt 0:00:36]} Bf7 {[%emt 0:01:12]} 20. Rac1 {[%emt 0:05:31]} Rb8 {[%emt 0:07:21]} 21. b3 {[%emt 0:07:35]} Nf4 {[%emt 0:25:48]} 22. Bg4 {[%emt 0:11:11]} h5 {[%emt 0:02:18]} 23. Bf3 {[%emt 0:05:45]} Qxd4 {[%emt 0:00:19]} 24. Rfd1 {[%emt 0:00:33]} Qb6 {[%emt 0:03:48]} 25. h4 {[%emt 0:03:59]} Qa5 {[%emt 0:01:22]} 26. Rc4 {[%emt 0:08:52]} Rb4 {[%emt 0:04:33]} 27. Rxb4 {[%emt 0:05:43]} Qxb4 {[%emt 0:00:02]} 28. g3 {[%emt 0:01:16]} Nd5 {[%emt 0:00:38]} 29. Nf1 {[%emt 0:01:23]} Nb6 {[%emt 0:03:07]} 30. Ne3 {[%emt 0:03:05]} Qa3 {[%emt 0:00:23]} 31. Rd2 {[%emt 0:02:46]} Rc8 {[%emt 0:01:25]} 32. Qb7 {[%emt 0:00:02]} Qc1+ {[%emt 0:00:29]} 33. Rd1 {[%emt 0:00:03]} Qc7 {[%emt 0:00:13]} 34. Qa6 {[%emt 0:01:04]} Nd7 {[%emt 0:00:57]} 35. Bxh5 {[%emt 0:03:12]} Ne5 {[%emt 0:00:33]} 36. Be2 {[%emt 0:00:40]} Rb8 {[%emt 0:00:47]} 37. Qd6 {[%emt 0:02:41]} Qb7 {[%emt 0:00:08]} 38. f4 {[%emt 0:01:22]} Nc6 {[%emt 0:00:23]} 39. Bf3 {[%emt 0:01:59]} Qb6 {[%emt 0:00:05]} 40. Kf2 {[%emt 0:00:00]} Nb4 {[%emt 0:01:28]} 41. Qxb6 {[%emt 0:04:26]} axb6 {[%emt 0:00:16]} 42. a3 {[%emt 0:03:01]} Na2 {[%emt 0:05:18]} 43. Rd2 {[%emt 0:06:08]} Nc3 {[%emt 0:02:53]} 44. Rd3 {[%emt 0:07:10]} Nb5 {[%emt 0:07:49]} 45. a4 {[%emt 0:00:39]} Nc7 {[%emt 0:00:17]} 46. Be2 {[%emt 0:05:08]} Na6 {[%emt 0:03:37]} 47. Rd1 {[%emt 0:01:18]} Nc5 {[%emt 0:00:45]} 48. Bc4 {[%emt 0:00:01]} Kf8 {[%emt 0:04:38]} 49. Kf3 {[%emt 0:02:24]} Be8 {[%emt 0:01:35]} 50. Nc2 {[%emt 0:01:05]} b5 {[%emt 0:04:28]} 51. axb5 {[%emt 0:00:26]} Bxb5 {[%emt 0:00:02]} 52. Bxb5 {[%emt 0:00:19]} Rxb5 {[%emt 0:00:04]} 53. b4 {[%emt 0:00:09]} Na6 {[%emt 0:00:49]} 54. Rd4 {[%emt 0:01:29]} Ke7 {[%emt 0:00:20]} 55. g4 {[%emt 0:00:05]} Rb8 {[%emt 0:01:11]} 56. Rc4 {[%emt 0:00:18]} Kd6 {[%emt 0:00:45]} 57. Ke4 {[%emt 0:00:29]} g6 {[%emt 0:02:08]} 58. Rd4+ {[%emt 0:02:30]} Ke7 {[%emt 0:00:15]} 59. g5 {[%emt 0:03:26]} f5+ {[%emt 0:01:30]} 60. Kd3 {[%emt 0:00:31]} Rh8 {[%emt 0:00:45]} 61. b5 {[%emt 0:00:42]} Nc5+ {[%emt 0:00:11]} 62. Kc4 {[%emt 0:00:08]} Nb7 {[%emt 0:01:10]} 63. Nb4 {[%emt 0:01:10]} Na5+ {[%emt 0:00:07]} 64. Kd3 {[%emt 0:00:24]} Rxh4 {[%emt 0:00:54]} 65. Nc6+ {[%emt 0:00:30]} Nxc6 {[%emt 0:00:05]} 66. bxc6 {[%emt 0:00:01]} e5 {[%emt 0:00:39]} 67. fxe5 {[%emt 0:00:54]} Rh3+ {[%emt 0:01:00]} 68. Kc4 {[%emt 0:00:05]} Rh1 {[%emt 0:00:22]} 69. Rd3 {[%emt 0:00:44]} Ke6 {[%emt 0:00:34]} 70. Rc3 {[%emt 0:01:35]} Rh8 {[%emt 0:00:26]} 71. Kb5 {[%emt 0:00:32]} Kxe5 {[%emt 0:00:26]} 72. c7 {[%emt 0:00:01]} Rc8 {[%emt 0:00:31]} 73. Kc6 {[%emt 0:00:23]} f4 {[%emt 0:00:28]} 74. Kd7 {[%emt 0:00:03]} Rxc7+ {[%emt 0:00:06]} 75. Rxc7 {[%emt 0:00:28]} f3 {[%emt 0:00:25]} 76. Ke7 {[%emt 0:00:28]} f2 {[%emt 0:00:37]} 77. Rc1 {[%emt 0:00:06]} Kf5 {[%emt 0:00:08]} 78. Rf1 {[%emt 0:00:11]} Kxg5 {[%emt 0:00:06]} 79. Rxf2 {[%emt 0:00:01]} Kh4 {[%emt 0:00:09]} 80. Kf6 {[%emt 0:00:04]} g5 {[%emt 0:00:04]} 81. Rg2 {[%emt 0:00:16]} g4 {[%emt 0:00:07]} 82. Kf5 {[%emt 0:00:01]} 1-0

[Event "67th RUS-ch Superfinal Women 2017"]
[Site "St. Petersburg"]
[Date "2017.12.12"]
[Round "9"]
[White "Ovod, Evgenija"]
[Black "Shuvalova, Polina"]
[Result "1-0"]
[ECO "B13"]
[WhiteElo "2364"]
[BlackElo "2385"]
[Annotator "NA"]
[PlyCount "129"]
[EventDate "2017.??.??"]
[EventType "tourn"]
[EventCountry "RUS"]
[SourceTitle "playchess.com"]
[Source "ChessBase"]
[SourceQuality "1"]
[TimeControl "40/5400+30:1800+30"]

1. e4 {[%emt 0:00:00]} c6 {[%emt 0:00:23]} 2. d4 {[%emt 0:00:00]} d5 {[%emt 0:00:02]} 3. exd5 {[%emt 0:00:00]} cxd5 {[%emt 0:00:03]} 4. Bd3 {[%emt 0:00:00]} Nc6 {[%emt 0:00:08]} 5. c3 {[%emt 0:00:01]} Qc7 {[%emt 0:00:50]} 6. Ne2 {[%emt 0:00:06]} Bg4 {[%emt 0:03:07] LiveBook: 270 Games} 7. O-O {[%emt 0:00:07] B13: Caro-Kann (Abtausch-Variante 4.c4)} e6 {[%emt 0:01:16]} (7... Nf6 8. Qe1 g6 9. Bf4 Qb6 10. h3 Bxe2 11. Qxe2 Bg7 12. a4 O-O 13. Re1 Rfe8 14. Na3 Nh5 {0-1 (41) Bachmann,A (2648)-Dreev,A (2648) Tbilisi 2017}) 8. Qe1 {[%emt 0:00:06]} Bxe2 {[%emt 0:00:10]} 9. Qxe2 {[%emt 0:00:04]} Nf6 {[%emt 0:00:07]} 10. Nd2 {[%emt 0:00:50]} Bd6 {[%emt 0:00:02]} 11. Nf3 {[%emt 0:03:01]} O-O {[%emt 0:00:18]} 12. Re1 {[%emt 0:01:07]} a6 $146 {[%emt 0:03:51]} ({Vorgänger:} 12... Rae8 13. Bg5 Nd7 14. Bc2 f5 {½-½ (46) Rook,D (2446)-Romm,M (2458) ICCF email 2013}) 13. Ne5 {[%emt 0:03:48]} Nd7 {[%emt 0:09:26]} 14. Bf4 {[%emt 0:12:47]} ({Much weaker is} 14. Qh5 g6 $17) 14... g6 {[%emt 0:03:14]} 15. h4 {[%emt 0:06:47]} Rfe8 {[%emt 0:07:24]} 16. h5 {[%emt 0:01:20]} Ndxe5 {[%emt 0:01:06]} 17. dxe5 {[%emt 0:00:59]} Bf8 {[%emt 0:00:15]} 18. hxg6 {[%emt 0:01:24]} fxg6 {[%emt 0:04:09]} 19. Rad1 {[%emt 0:07:11]} Bg7 {[%emt 0:04:32]} 20. Bb1 {[%emt 0:01:00]} Rf8 {[%emt 0:03:33]} 21. Bg3 {[%emt 0:02:41]} b5 {[%emt 0:00:44]} 22. a4 {[%emt 0:03:11]} Rab8 {[%emt 0:09:00]} 23. axb5 {[%emt 0:01:07]} axb5 {[%emt 0:00:16]} 24. Qg4 {[%emt 0:05:19]} Rfe8 {[%emt 0:05:58]} 25. f4 {[%emt 0:12:55]} Na5 {[%emt 0:05:35]} 26. b4 {[%emt 0:13:39]} Nc4 {[%emt 0:03:45]} 27. Rc1 {[%emt 0:00:11]} Qf7 {[%emt 0:04:27]} 28. Bf2 {[%emt 0:01:51]} Rec8 {[%emt 0:00:55]} 29. Bd4 {[%emt 0:01:58]} Ra8 {[%emt 0:03:45]} 30. Re2 {[%emt 0:05:45]} Ra1 {[%emt 0:01:43]} 31. Kh2 {[%emt 0:00:08]} Rca8 {[%emt 0:05:18]} 32. Rce1 {[%emt 0:00:27]} R8a6 {[%emt 0:01:34]} 33. g3 {[%emt 0:01:00]} Qe7 {[%emt 0:03:25]} 34. Kh3 {[%emt 0:04:51]} Na3 {[%emt 0:01:04]} 35. Bd3 {[%emt 0:00:04]} Rxe1 {[%emt 0:00:12]} 36. Rxe1 {[%emt 0:00:04]} Nc4 {[%emt 0:00:10]} 37. Qe2 {[%emt 0:03:34]} Qf8 {[%emt 0:01:37]} 38. Rf1 {[%emt 0:00:51]} Qa8 {[%emt 0:00:40]} 39. Rf2 {[%emt 0:00:16]} Ra1 {[%emt 0:00:45]} 40. Qg4 {[%emt 0:00:00]} Qe8 {[%emt 0:07:00]} 41. Kh2 {[%emt 0:07:51]} Qe7 {[%emt 0:03:20]} 42. Bc5 {[%emt 0:01:50]} Qe8 {[%emt 0:00:58]} 43. Qh3 {[%emt 0:05:09]} Qc6 {[%emt 0:04:26]} 44. Qg2 {[%emt 0:07:09]} Qa8 {[%emt 0:02:20]} 45. Be2 {[%emt 0:04:24]} Bf8 {[%emt 0:05:27]} 46. Bd4 {[%emt 0:01:56]} Ra6 {[%emt 0:02:18]} 47. Bd3 {[%emt 0:00:53]} Bg7 {[%emt 0:01:25]} 48. g4 {[%emt 0:01:00]} Ra1 {[%emt 0:01:41]} 49. Re2 {[%emt 0:01:48]} Bh6 {[%emt 0:02:25]} 50. Kg3 $16 {[%emt 0:01:01]} Qa3 {[%emt 0:02:33]} 51. g5 {[%emt 0:01:10]} Rd1 {[%emt 0:03:00]} 52. Qf3 {[%emt 0:02:40]} Bf8 {[%emt 0:01:15]} 53. Rh2 {[%emt 0:03:48]} Rd2 {[%emt 0:06:07]} 54. Bxc4 {[%emt 0:01:21]} Rxh2 {[%emt 0:01:08]} 55. Bxd5 {[%emt 0:00:19]} Rd2 {[%emt 0:02:04]} 56. Bxe6+ {[%emt 0:00:08]} Kh8 {[%emt 0:00:09]} 57. Bf7 {[%emt 0:03:13]} Bxb4 {[%emt 0:02:33]} 58. e6+ {[%emt 0:01:20]} Rxd4 {[%emt 0:00:08]} 59. cxd4 {[%emt 0:00:03]} Qa1 {[%emt 0:01:48]} 60. Qe3 {[%emt 0:00:30]} Qe1+ {[%emt 0:00:53]} 61. Qxe1 {[%emt 0:00:18]} Bxe1+ {[%emt 0:00:03]} 62. Kf3 {[%emt 0:00:04]} Kg7 {[%emt 0:00:04]} 63. Be8 {[%emt 0:00:15]} b4 {[%emt 0:00:42]} 64. e7 {[%emt 0:00:21]} b3 {[%emt 0:00:16]} 65. Bxg6 {[%emt 0:00:17]} 1-0